fUSD/lending_fUSD_20240329
["ID","MTS","AMOUNT","RATE_DAILY","PERIOD"]
[320933532,1711716665868,-500.0,0.00054795,120]
[320933533,1711716665879,-500.0,0.00054795,120]
[320933534,1711716665889,-500.0,0.00054795,120]
[320933535,1711716665899,-500.0,0.00054795,120]
[320933536,1711716665909,-500.0,0.00054795,120]
[320933537,1711716665919,-500.0,0.00054795,120]
[320933538,1711716665929,-500.0,0.00054795,120]
[320933539,1711716665939,-500.0,0.00054795,120]
[320933540,1711716665949,-500.0,0.00054795,120]
[320933541,1711716665959,-500.0,0.00054795,120]
[320933542,1711716665969,-500.0,0.00054795,120]
[320933543,1711716665980,-500.0,0.00054795,120]
[320933544,1711716665990,-500.0,0.00054795,120]
[320933545,1711716666004,-500.0,0.00054795,120]
[320933546,1711716666015,-500.0,0.00054795,120]
[320933547,1711716666025,-500.0,0.00054795,120]
[320933548,1711716666036,-500.0,0.00054795,120]
[320933549,1711716666048,-817.0,0.00054795,120]
[320933550,1711716666058,-608.0,0.00054795,120]
[320933551,1711716666068,-900.0,0.00054795,120]
[320933552,1711716666078,-900.0,0.00054795,120]
[320933553,1711716666089,-900.0,0.00054795,120]
[320933554,1711716666099,-205.116034,0.00054795,120]
[320933555,1711716666109,-500.0,0.00054795,120]
[320933556,1711716666119,-500.0,0.00054795,120]
[320933557,1711716666129,-500.0,0.00054795,120]
[320933558,1711716666140,-500.0,0.00054795,120]
[320933559,1711716666151,-500.0,0.00054795,120]
[320933560,1711716666161,-500.0,0.00054795,120]
[320933561,1711716666171,-500.0,0.00054795,120]
[320933562,1711716666181,-500.0,0.00054795,120]
[320933563,1711716666191,-500.0,0.00054795,120]
[320933564,1711716666201,-500.0,0.00054795,120]
[320933565,1711716666211,-500.0,0.00054795,120]
[320933566,1711716666221,-500.0,0.00054795,120]
[320933567,1711716666231,-500.0,0.00054795,120]
[320933568,1711716666245,-500.0,0.00054795,120]
[320933569,1711716666256,-500.0,0.00054795,120]
[320933570,1711716666267,-500.0,0.00054795,120]
[320933571,1711716666278,-500.0,0.00054795,120]
[320933572,1711716666288,-500.0,0.00054795,120]
[320933573,1711716666299,-500.0,0.00054795,120]
[320933574,1711716666310,-500.0,0.00054795,120]
[320933575,1711716666321,-500.0,0.00054795,120]
[320933576,1711716666334,-500.0,0.00054795,120]
[320933577,1711716666346,-500.0,0.00054795,120]
[320933578,1711716666356,-500.0,0.00054795,120]
[320933579,1711716666366,-500.0,0.00054795,120]
[320933580,1711716666378,-500.0,0.00054795,120]
[320933581,1711716666389,-500.0,0.00054795,120]
[320933582,1711716666400,-500.0,0.00054795,120]
[320933583,1711716666411,-500.0,0.00054795,120]
[320933584,1711716666422,-500.0,0.00054795,120]
[320933585,1711716666432,-500.0,0.00054795,120]
[320933586,1711716666443,-500.0,0.00054795,120]
[320933587,1711716666452,-500.0,0.00054795,120]
[320933588,1711716666462,-500.0,0.00054795,120]
[320933589,1711716666473,-500.0,0.00054795,120]
[320933590,1711716666483,-500.0,0.00054795,120]
[320933591,1711716666495,-500.0,0.00054795,120]
[320933592,1711716666505,-500.0,0.00054795,120]
[320933593,1711716666516,-500.0,0.00054795,120]
[320933594,1711716666526,-500.0,0.00054795,120]
[320933595,1711716666537,-500.0,0.00054795,120]
[320933596,1711716666548,-500.0,0.00054795,120]
[320933597,1711716666558,-500.0,0.00054795,120]
[320933598,1711716666568,-833.0,0.00054795,120]
[320933599,1711716666578,-500.0,0.00054795,120]
[320933600,1711716666588,-500.0,0.00054795,120]
[320933601,1711716666598,-500.0,0.00054795,120]
[320933602,1711716666608,-500.0,0.00054795,120]
[320933603,1711716666618,-500.0,0.00054795,120]
[320933604,1711716666628,-500.0,0.00054795,120]
[320933605,1711716666637,-500.0,0.00054795,120]
[320933606,1711716666647,-500.0,0.00054795,120]
[320933607,1711716666657,-500.0,0.00054795,120]
[320933608,1711716666666,-500.0,0.00054795,120]
[320933609,1711716666676,-500.0,0.00054795,120]
[320933610,1711716666685,-500.0,0.00054795,120]
[320933611,1711716666694,-500.0,0.00054795,120]
[320933612,1711716666703,-500.0,0.00054795,120]
[320933613,1711716666713,-500.0,0.00054795,120]
[320933614,1711716666722,-500.0,0.00054795,120]
[320933615,1711716666731,-500.0,0.00054795,120]
[320933616,1711716666740,-500.0,0.00054795,120]
[320933617,1711716666751,-500.0,0.00054795,120]
[320933618,1711716666760,-500.0,0.00054795,120]
[320933619,1711716666770,-500.0,0.00054795,120]
[320933620,1711716666779,-500.0,0.00054795,120]
[320933621,1711716666788,-503.0,0.00054795,120]
[320933622,1711716666797,-12151.08,0.00054795,30]
[320933623,1711716666806,-155.93078628,0.000548,120]
[320933624,1711716666816,-445.60575563,0.000548,120]
[320933625,1711716666825,-4821.24114706,0.000549,120]
[320933626,1711716666834,-6920.17337439,0.00054903,2]
[320933627,1711716666843,-586.09,0.00054959,120]
[320933628,1711716666853,-623.33,0.00054959,120]
[320933629,1711716666864,-592.42,0.00054959,120]
[320933630,1711716666874,-500.0,0.00054959,120]
[320933631,1711716666883,-500.0,0.00054959,120]
[320933632,1711716666902,-500.0,0.00054959,120]
[320933633,1711716666913,-691.21,0.00054959,120]
[320933634,1711716666927,-720.43,0.00054959,120]
[320933635,1711716666936,-3679.89,0.00054959,120]
[320933636,1711716666949,-874.18,0.00054959,120]
[320933637,1711716666959,-523.45,0.00054959,120]
[320933638,1711716666969,-2750.62,0.00054959,120]
[320933639,1711716666979,-500.0,0.00054959,120]
[320933640,1711716666989,-851.77149494,0.00054989,2]
[320933641,1711716667002,-19270.85704163,0.00054989,2]
[320933642,1711716667014,-151.0,0.00055041,120]
[320933643,1711716667024,-1256.8,0.00055068,120]
[320933644,1711716667034,-1782.96,0.00055068,120]
[320933645,1711716667043,-903.7,0.00055068,120]
[320933646,1711716667058,-606.26,0.00055068,120]
[320933647,1711716667068,-1141.6,0.00055068,120]
[320933648,1711716667081,-809.83,0.00055068,120]
[320933649,1711716667094,-502.1,0.00055068,120]
[320933650,1711716667104,-4769.79,0.00055068,120]
[320933651,1711716667113,-650.47,0.00055068,120]
[320933652,1711716667126,-528.43,0.00055068,120]
[320933653,1711716667136,-534.25,0.00055068,21]
[320933654,1711716667146,-375.45200984,0.00055068,120]
[320933655,1711716667161,-1337.23,0.00055068,120]
[320933656,1711716667171,-576.41,0.00055068,120]
[320933657,1711716667182,-935.52,0.00055068,120]
[320933658,1711716667192,-609.11,0.00055068,120]
[320933659,1711716667210,-500.0,0.00055068,120]
[320933660,1711716667220,-531.05,0.00055068,120]
[320933661,1711716667230,-1000.44,0.00055068,120]
[320933662,1711716667241,-731.96,0.00055068,120]
[320933663,1711716667253,-1153.11,0.00055068,120]
[320933664,1711716667263,-999.05,0.00055068,120]
[320933665,1711716667273,-999.22,0.00055068,120]
[320933666,1711716667282,-1603.08,0.00055068,120]
[320933667,1711716667292,-641.15,0.00055068,120]
[320933668,1711716667304,-616.6,0.00055068,120]
[320933669,1711716667315,-1045.1,0.00055068,120]
[320933670,1711716667327,-505.71,0.00055068,120]
[320933671,1711716667351,-678.59,0.00055068,120]
[320933672,1711716667366,-581.67,0.00055068,120]
[320933673,1711716667378,-214.98589903,0.00055068,120]
[320933674,1711716667388,-732.12,0.00055068,120]
[320933675,1711716667398,-509.86,0.00055068,120]
[320933676,1711716667407,-1070.64,0.00055068,120]
[320933677,1711716667418,-779.78,0.00055068,120]
[320933678,1711716667428,-1366.39,0.00055068,120]
[320933679,1711716667438,-566.51,0.00055068,120]
[320933680,1711716667447,-607.06219231,0.00055068,120]
[320933681,1711716667457,-1473.55,0.00055068,120]
[320933682,1711716667466,-541.19,0.00055068,120]
[320933683,1711716667475,-542.47,0.00055068,120]
[320933684,1711716667484,-520.06,0.00055068,120]
[320933685,1711716667495,-500.0,0.00055068,120]
[320933686,1711716667505,-618.22,0.00055068,120]
[320933687,1711716667514,-7484.31,0.00055068,120]
[320933688,1711716667524,-708.95,0.00055068,120]
[320933689,1711716667533,-756.87,0.00055068,120]
[320933690,1711716667542,-500.0,0.00055068,120]
[320933691,1711716667552,-1441.43,0.00055068,120]
[320933692,1711716667562,-1273.33,0.00055068,120]
[320933693,1711716667572,-674.57,0.00055068,120]
[320933694,1711716667581,-168.16,0.00055068,2]
[320933695,1711716667590,-267.31111111,0.00055233,120]
[320933696,1711716667600,-586.09,0.00055233,120]
[320933697,1711716667610,-623.33,0.00055233,120]
[320933698,1711716667619,-592.42,0.00055233,120]
[320933699,1711716667629,-500.0,0.00055233,120]
[320933700,1711716667639,-500.0,0.00055233,120]
[320933701,1711716667650,-500.0,0.00055233,120]
[320933702,1711716667659,-691.21,0.00055233,120]
[320933703,1711716667669,-720.43,0.00055233,120]
[320933704,1711716667680,-3679.89,0.00055233,120]
[320933705,1711716667690,-874.18,0.00055233,120]
[320933706,1711716667701,-523.45,0.00055233,120]
[320933707,1711716667711,-2750.62,0.00055233,120]
[320933708,1711716667721,-500.0,0.00055233,120]
[320933709,1711716667731,-364.8128,0.00055242,2]
[320933710,1711716667743,-1256.8,0.00055342,120]
[320933711,1711716667753,-1782.96,0.00055342,120]
[320933712,1711716667764,-903.7,0.00055342,120]
[320933713,1711716667775,-606.26,0.00055342,120]
[320933714,1711716667787,-1141.6,0.00055342,120]
[320933715,1711716667797,-809.83,0.00055342,120]
[320933716,1711716667808,-502.1,0.00055342,120]
[320933717,1711716667819,-4769.79,0.00055342,120]
[320933718,1711716667830,-650.47,0.00055342,120]
[320933719,1711716667840,-528.43,0.00055342,120]
[320933720,1711716667851,-534.25,0.00055342,21]
[320933721,1711716667862,-1337.23,0.00055342,120]
[320933722,1711716667873,-576.41,0.00055342,120]
[320933723,1711716667884,-935.52,0.00055342,120]
[320933724,1711716667894,-609.11,0.00055342,120]
[320933725,1711716667905,-576.37452953,0.00055342,120]
[320933726,1711716667916,-531.05,0.00055342,120]
[320933727,1711716667927,-731.96,0.00055342,120]
[320933728,1711716667938,-1153.11,0.00055342,120]
[320933729,1711716667949,-999.05,0.00055342,120]
[320933730,1711716667961,-999.22,0.00055342,120]
[320933731,1711716667971,-1603.08,0.00055342,120]
[320933732,1711716667982,-641.15,0.00055342,120]
[320933733,1711716667993,-616.6,0.00055342,120]
[320933734,1711716668183,-1045.1,0.00055342,120]
[320933735,1711716668194,-505.71,0.00055342,120]
[320933736,1711716668206,-678.59,0.00055342,120]
[320933737,1711716668218,-581.67,0.00055342,120]
[320933738,1711716668229,-732.12,0.00055342,120]
[320933739,1711716668239,-509.86,0.00055342,120]
[320933740,1711716668252,-1070.64,0.00055342,120]
[320933741,1711716668263,-779.78,0.00055342,120]
[320933742,1711716668275,-1366.39,0.00055342,120]
[320933743,1711716668286,-566.51,0.00055342,120]
[320933744,1711716668296,-1473.55,0.00055342,120]
[320933745,1711716668308,-541.19,0.00055342,120]
[320933746,1711716668320,-542.47,0.00055342,120]
[320933747,1711716668331,-520.06,0.00055342,120]
[320933748,1711716668342,-500.0,0.00055342,120]
[320933749,1711716668356,-618.22,0.00055342,120]
[320933750,1711716668366,-7484.31,0.00055342,120]
[320933751,1711716668377,-708.95,0.00055342,120]
[320933752,1711716668388,-756.87,0.00055342,120]
[320933753,1711716668398,-244.68504427,0.00055342,120]
[320933754,1711716668408,-1441.43,0.00055342,120]
[320933755,1711716668418,-1273.33,0.00055342,120]
[320933756,1711716668429,-674.57,0.00055342,120]
[320933757,1711716668439,-152.66,0.000554,8]
[320933758,1711716668450,-152.66,0.000554,8]
[320933759,1711716668460,-152.66,0.000554,8]
[320933760,1711716668471,-152.66,0.000554,8]
[320933761,1711716668481,-152.66,0.000554,8]
[320933762,1711716668491,-152.66,0.000554,8]
[320933763,1711716668503,-152.66,0.000554,8]
[320933764,1711716668513,-152.66,0.000554,8]
[320933765,1711716668524,-152.66,0.000554,8]
[320933766,1711716668534,-152.66,0.000554,8]
[320933767,1711716668544,-152.66,0.000554,8]
[320933768,1711716668554,-152.66,0.000554,8]
[320933769,1711716668564,-152.66,0.000554,8]
[320933770,1711716668574,-152.66,0.000554,8]
[320933771,1711716668583,-2835.29,0.000554,8]
[320933772,1711716668594,-2835.29,0.000554,8]
[320933773,1711716668604,-2835.29,0.000554,8]
[320933774,1711716668615,-2835.29,0.000554,8]
[320933775,1711716668624,-2835.29,0.000554,8]
[320933776,1711716668634,-2835.29,0.000554,8]
[320933777,1711716668644,-2835.29,0.000554,8]
[320933778,1711716668654,-2835.29,0.000554,8]
[320933779,1711716668664,-2835.29,0.000554,8]
[320933780,1711716668674,-2835.29,0.000554,8]
[320933781,1711716668684,-2835.29,0.000554,8]
[320933782,1711716668694,-2835.29,0.000554,8]
[320933783,1711716668703,-2835.29,0.000554,8]
[320933784,1711716668713,-2835.29,0.000554,8]
[320933785,1711716668722,-2835.29,0.000554,8]
[320933786,1711716668734,-2835.29,0.000554,8]
[320933787,1711716668745,-2835.29,0.000554,8]
[320933788,1711716668761,-2835.29,0.000554,8]
[320933789,1711716668771,-2835.29,0.000554,8]
[320933790,1711716668794,-2835.29,0.000554,8]
[320933791,1711716668815,-537.92,0.00055412,30]
[320933792,1711716668827,-1000.0,0.00055451,120]
[320933793,1711716668848,-586.09,0.00055507,120]
[320933794,1711716668861,-623.33,0.00055507,120]
[320933795,1711716668871,-592.42,0.00055507,120]
[320933796,1711716668881,-500.0,0.00055507,120]
[320933797,1711716668891,-500.0,0.00055507,120]
[320933798,1711716668909,-500.0,0.00055507,120]
[320933799,1711716668918,-691.21,0.00055507,120]
[320933800,1711716668928,-720.43,0.00055507,120]
[320933801,1711716668937,-3679.89,0.00055507,120]
[320933802,1711716668960,-874.18,0.00055507,120]
[320933803,1711716668981,-523.45,0.00055507,120]
[320933804,1711716669000,-2750.62,0.00055507,120]
[320933805,1711716669025,-500.0,0.00055507,120]
[320933806,1711716669047,-1014.64,0.00055565,2]
[320933807,1711716669067,-300.98,0.00055585,2]
[320933808,1711716669091,-1256.95770746,0.00055616,120]
[320933809,1711716669102,-1783.15130243,0.00055616,120]
[320933810,1711716669115,-903.73018406,0.00055616,120]
[320933811,1711716669126,-606.39696659,0.00055616,120]
[320933812,1711716669138,-1141.73821543,0.00055616,120]
[320933813,1711716669147,-809.93697014,0.00055616,120]
[320933814,1711716669156,-502.29768863,0.00055616,120]
[320933815,1711716669177,-4769.80254261,0.00055616,120]
[320933816,1711716669186,-650.62105948,0.00055616,120]
[320933817,1711716669195,-528.63011687,0.00055616,120]
[320933818,1711716669204,-534.28253816,0.00055616,21]
[320933819,1711716669213,-1337.29146684,0.00055616,120]
[320933820,1711716669223,-576.47705377,0.00055616,120]
[320933821,1711716669236,-935.74379815,0.00055616,120]
[320933822,1711716669247,-609.24296464,0.00055616,120]
[320933823,1711716669256,-531.25572039,0.00055616,120]
[320933824,1711716669266,-732.03393641,0.00055616,120]
[320933825,1711716669276,-1153.19642027,0.00055616,120]
[320933826,1711716669285,-999.05631426,0.00055616,120]
[320933827,1711716669295,-999.36,0.00055616,120]
[320933828,1711716669304,-1603.22898805,0.00055616,120]
[320933829,1711716669313,-641.33,0.00055616,120]
[320933830,1711716669328,-616.68717071,0.00055616,120]
[320933831,1711716669338,-1045.2433011,0.00055616,120]
[320933832,1711716669347,-505.75203117,0.00055616,120]
[320933833,1711716669358,-678.64642246,0.00055616,120]
[320933834,1711716669368,-581.85913774,0.00055616,120]
[320933835,1711716669379,-732.31638996,0.00055616,120]
[320933836,1711716669390,-510.00802583,0.00055616,120]
[320933837,1711716669400,-1070.84546739,0.00055616,120]
[320933838,1711716669411,-779.80310127,0.00055616,120]
[320933839,1711716669422,-1366.4109314,0.00055616,120]
[320933840,1711716669432,-566.57082649,0.00055616,120]
[320933841,1711716669443,-1473.65680137,0.00055616,120]
[320933842,1711716669454,-541.30733252,0.00055616,120]
[320933843,1711716669465,-542.47594415,0.00055616,120]
[320933844,1711716669475,-520.08920491,0.00055616,120]
[320933845,1711716669485,-411.69661028,0.00055616,120]
[320933846,1711716669506,-618.34565805,0.00055616,120]
[320933847,1711716669517,-7484.4719,0.00055616,120]
[320933848,1711716669544,-709.1428727,0.00055616,120]
[320933849,1711716669570,-757.01831073,0.00055616,120]
[320933850,1711716669587,-1441.55345564,0.00055616,120]
[320933851,1711716669606,-1273.55208916,0.00055616,120]
[320933852,1711716669628,-674.73308456,0.00055616,120]
[320933853,1711716669643,-3854.59412973,0.00055636,33]
[320933854,1711716669654,-150.0,0.00055769,60]
[320933855,1711716669691,-586.09,0.00055781,120]
[320933856,1711716669711,-623.33,0.00055781,120]
[320933857,1711716669723,-592.42,0.00055781,120]
[320933858,1711716669738,-332.38223871,0.00055781,120]
[320933859,1711716669751,-500.0,0.00055781,120]
[320933860,1711716669762,-500.0,0.00055781,120]
[320933861,1711716669772,-691.21,0.00055781,120]
[320933862,1711716669782,-720.43,0.00055781,120]
[320933863,1711716669801,-3679.89,0.00055781,120]
[320933864,1711716669812,-874.18,0.00055781,120]
[320933865,1711716669822,-523.45,0.00055781,120]
[320933866,1711716669833,-2750.62,0.00055781,120]
[320933867,1711716669844,-367.62360284,0.00055781,120]
[320933868,1711716669854,-267.31111111,0.00055836,120]
[320933869,1711716669865,-168.45304086,0.00055844,105]
[320933870,1711716669888,-300.98,0.0005587,2]
[320933871,1711716669923,-1000.44,0.0005589,120]
[320933872,1711716669937,-1014.64,0.0005603,2]
[320933873,1711716669947,-586.09,0.00056055,120]
[320933874,1711716669959,-623.33,0.00056055,120]
[320933875,1711716669972,-592.42,0.00056055,120]
[320933876,1711716669982,-416.83260479,0.00056055,120]
[320933877,1711716669991,-500.0,0.00056055,120]
[320933878,1711716670001,-691.21,0.00056055,120]
[320933879,1711716670011,-720.43,0.00056055,120]
[320933880,1711716670020,-3679.89,0.00056055,120]
[320933881,1711716670031,-874.18,0.00056055,120]
[320933882,1711716670040,-523.45,0.00056055,120]
[320933883,1711716670049,-2750.62,0.00056055,120]
[320933884,1711716670059,-819.73,0.00056164,120]
[320933885,1711716670071,-819.73,0.00056164,120]
[320933886,1711716670081,-819.73,0.00056164,120]
[320933887,1711716670091,-819.73,0.00056164,120]
[320933888,1711716670102,-819.73,0.00056164,120]
[320933889,1711716670112,-819.73,0.00056164,120]
[320933890,1711716670122,-819.73,0.00056164,120]
[320933891,1711716670133,-819.73,0.00056164,120]
[320933892,1711716670143,-819.73,0.00056164,120]
[320933893,1711716670153,-819.73,0.00056164,120]
[320933894,1711716670163,-819.73,0.00056164,120]
[320933895,1711716670174,-819.73,0.00056164,120]
[320933896,1711716670184,-819.73,0.00056164,120]
[320933897,1711716670194,-819.73,0.00056164,120]
[320933898,1711716670205,-819.73,0.00056164,120]
[320933899,1711716670215,-819.73,0.00056164,120]
[320933900,1711716670225,-819.73,0.00056164,120]
[320933901,1711716670235,-819.73,0.00056164,120]
[320933902,1711716670246,-819.73,0.00056164,120]
[320933903,1711716670257,-819.73,0.00056164,120]
[320933904,1711716670268,-819.73,0.00056164,120]
[320933905,1711716670278,-819.73,0.00056164,120]
[320933906,1711716670289,-819.73,0.00056164,120]
[320933907,1711716670299,-819.93210723,0.00056164,120]
[320933908,1711716670309,-431.19340125,0.000562,120]
[320933909,1711716670320,-206.84,0.00056208,120]
[320933910,1711716670330,-151.0,0.00056301,120]
[320933911,1711716670340,-368.33,0.00056308,2]
[320933912,1711716670349,-586.09,0.00056329,120]
[320933913,1711716670360,-623.33,0.00056329,120]
[320933914,1711716670370,-592.42,0.00056329,120]
[320933915,1711716670379,-500.0,0.00056329,120]
[320933916,1711716670393,-691.21,0.00056329,120]
[320933917,1711716670411,-720.43,0.00056329,120]
[320933918,1711716670426,-3679.89,0.00056329,120]
[320933919,1711716670436,-874.18,0.00056329,120]
[320933920,1711716670445,-523.45,0.00056329,120]
[320933921,1711716670456,-2750.62,0.00056329,120]
[320933922,1711716670465,-267.31111111,0.00056438,120]
[320933923,1711716670474,-1000.0,0.00056448,13]
[320933924,1711716670484,-1000.0,0.00056448,13]
[320933925,1711716670494,-1000.0,0.00056448,13]
[320933926,1711716670504,-1000.0,0.00056448,13]
[320933927,1711716670513,-1000.0,0.00056448,13]
[320933928,1711716670522,-1000.0,0.00056448,13]
[320933929,1711716670531,-1000.0,0.00056448,13]
[320933930,1711716670540,-1000.0,0.00056448,13]
[320933931,1711716670550,-1000.0,0.00056448,13]
[320933932,1711716670560,-183.94088499,0.00056493,30]
[320933933,1711716670570,-182.50202696,0.00056493,30]
[320933934,1711716670580,-1806.44480182,0.00056493,30]
[320933935,1711716670591,-461.68303418,0.00056493,30]
[320933936,1711716670601,-586.09,0.00056603,120]
[320933937,1711716670611,-623.33,0.00056603,120]
[320933938,1711716670621,-592.42,0.00056603,120]
[320933939,1711716670631,-500.0,0.00056603,120]
[320933940,1711716670641,-691.21,0.00056603,120]
[320933941,1711716670652,-720.43,0.00056603,120]
[320933942,1711716670662,-3679.89,0.00056603,120]
[320933943,1711716670672,-874.18,0.00056603,120]
[320933944,1711716670682,-523.45,0.00056603,120]
[320933945,1711716670692,-2750.62,0.00056603,120]
[320933946,1711716670702,-152.66,0.000567,8]
[320933947,1711716670711,-152.66,0.000567,8]
[320933948,1711716670721,-152.66,0.000567,8]
[320933949,1711716670731,-152.66,0.000567,8]
[320933950,1711716670740,-152.66,0.000567,8]
[320933951,1711716670752,-152.66,0.000567,8]
[320933952,1711716670762,-152.66,0.000567,8]
[320933953,1711716670772,-152.66,0.000567,8]
[320933954,1711716670783,-152.66,0.000567,8]
[320933955,1711716670793,-152.66,0.000567,8]
[320933956,1711716670803,-2835.29,0.000567,8]
[320933957,1711716670813,-2835.29,0.000567,8]
[320933958,1711716670824,-2835.29,0.000567,8]
[320933959,1711716670834,-2835.29,0.000567,8]
[320933960,1711716670844,-2835.29,0.000567,8]
[320933961,1711716670854,-2835.29,0.000567,8]
[320933962,1711716670864,-2835.29,0.000567,8]
[320933963,1711716670874,-2835.29,0.000567,8]
[320933964,1711716670884,-2835.29,0.000567,8]
[320933965,1711716670894,-2835.29,0.000567,8]
[320933966,1711716670904,-2835.29,0.000567,8]
[320933967,1711716670913,-2835.29,0.000567,8]
[320933968,1711716670923,-2835.29,0.000567,8]
[320933969,1711716670933,-2835.29,0.000567,8]
[320933970,1711716670943,-2835.29,0.000567,8]
[320933971,1711716670953,-2835.29,0.000567,8]
[320933972,1711716670962,-2835.29,0.000567,8]
[320933973,1711716670972,-2835.29,0.000567,8]
[320933974,1711716670983,-2835.29,0.000567,8]
[320933975,1711716670993,-2835.29,0.000567,8]
[320933976,1711716671004,-151.0,0.000567,120]
[320933977,1711716671014,-1000.44,0.00056712,120]
[320933978,1711716671023,-410.981688,0.000568,30]
[320933979,1711716671033,-500.0,0.0005687,90]
[320933980,1711716671044,-586.09,0.00056877,120]
[320933981,1711716671054,-623.33,0.00056877,120]
[320933982,1711716671063,-592.42,0.00056877,120]
[320933983,1711716671073,-495.7400101,0.00056877,120]
[320933984,1711716671084,-691.21,0.00056877,120]
[320933985,1711716671094,-720.43,0.00056877,120]
[320933986,1711716671104,-3679.89,0.00056877,120]
[320933987,1711716671115,-874.18,0.00056877,120]
[320933988,1711716671125,-523.45,0.00056877,120]
[320933989,1711716671135,-2750.62,0.00056877,120]
[320933990,1711716671144,-1000.0,0.00056986,120]
[320933991,1711716671154,-185.51878917,0.00056998,120]
[320933992,1711716671165,-2223.62731424,0.00057024,120]
[320933993,1711716671175,-1392.62580325,0.00057024,120]
[320933994,1711716671187,-566.66777425,0.00057024,120]
[320933995,1711716671197,-1318.19005954,0.00057024,120]
[320933996,1711716671207,-1014.64,0.0005703,2]
[320933997,1711716671217,-267.31111111,0.00057041,120]
[320933998,1711716671227,-300.98,0.0005707,2]
[320933999,1711716671237,-586.09,0.00057151,120]
[320934000,1711716671248,-623.33,0.00057151,120]
[320934001,1711716671257,-592.42,0.00057151,120]
[320934002,1711716671267,-691.21,0.00057151,120]
[320934003,1711716671277,-720.43,0.00057151,120]
[320934004,1711716671287,-3679.89,0.00057151,120]
[320934005,1711716671297,-874.18,0.00057151,120]
[320934006,1711716671307,-523.45,0.00057151,120]
[320934007,1711716671317,-2750.62,0.00057151,120]
[320934008,1711716671328,-1000.0,0.0005726,120]
[320934009,1711716671338,-500.0,0.00057279,34]
[320934010,1711716671347,-300.98,0.00057355,2]
[320934011,1711716671358,-168.45304086,0.00057367,111]
[320934012,1711716671372,-500.0,0.00057418,90]
[320934013,1711716671383,-586.09,0.00057425,120]
[320934014,1711716671394,-623.33,0.00057425,120]
[320934015,1711716671405,-592.42,0.00057425,120]
[320934016,1711716671416,-691.21,0.00057425,120]
[320934017,1711716671428,-720.43,0.00057425,120]
[320934018,1711716671438,-3679.89,0.00057425,120]
[320934019,1711716671448,-874.18,0.00057425,120]
[320934020,1711716671458,-523.45,0.00057425,120]
[320934021,1711716671469,-2750.62,0.00057425,120]
[320934022,1711716671479,-851.77149494,0.00057467,2]
[320934023,1711716671490,-19270.85704163,0.00057467,2]
[320934024,1711716671501,-1014.64,0.00057495,2]
[320934025,1711716671512,-2223.62731424,0.00057522,120]
[320934026,1711716671522,-1392.62580325,0.00057522,120]
[320934027,1711716671533,-566.66777425,0.00057522,120]
[320934028,1711716671543,-1318.19005954,0.00057522,120]
[320934029,1711716671553,-1000.0,0.00057534,120]
[320934030,1711716671563,-666.0,0.00057534,120]
[320934031,1711716671573,-1000.44,0.00057534,120]